bitfinex/quotes_BTCUSD_20240627
["timestamp","ask_amount","ask_price","bid_price","bid_amount"]
[1719454388034,0.16369,61091.0,61086.0,0.15520477]
[1719454388235,0.68529045,61090.0,61086.0,0.15520477]
[1719454388442,0.03057045,61089.0,61086.0,0.15520477]
[1719454388650,0.65472,61088.0,61086.0,0.15520477]
[1719454388852,0.03057045,61087.0,61086.0,0.15520477]
[1719454389053,0.68529045,61087.0,61086.0,0.15520477]
[1719454389942,0.68629045,61087.0,61086.0,0.15520477]
[1719454390348,0.68629045,61087.0,61086.0,0.15620477]
[1719454390784,0.68529045,61087.0,61086.0,0.15620477]
[1719454391000,0.65472,61087.0,61086.0,0.15520477]
[1719454391219,0.68582308,61087.0,61086.0,0.15720477]
[1719454392630,0.68582308,61087.0,61086.0,0.15520477]
[1719454393053,0.68582308,61087.0,61086.0,0.15820477]
[1719454393487,0.68582308,61087.0,61086.0,0.15720477]
[1719454393910,0.68582308,61087.0,61086.0,0.15920477]
[1719454394135,0.65472,61087.0,61086.0,0.15920477]
[1719454395881,0.65472,61087.0,61086.0,0.48661177]
[1719454396094,0.65472,61087.0,61086.0,1.21585775]
[1719454397207,0.65472,61087.0,61086.0,1.20436052]
[1719454397456,0.65472,61087.0,61086.0,1.18436052]
[1719454397660,0.65472,61087.0,61086.0,1.08806052]
[1719454399358,0.65472,61087.0,61086.0,1.08898452]
[1719454399576,0.65472,61087.0,61086.0,1.10898452]
[1719454403455,0.65472,61087.0,61086.0,1.62599152]
[1719454403657,0.65472,61087.0,61086.0,1.95339852]
[1719454403868,0.65472,61087.0,61086.0,2.15339852]
[1719454404481,0.65472,61087.0,61086.0,1.95339852]
[1719454405038,0.65472,61087.0,61086.0,1.18268452]
[1719454405380,0.65472,61087.0,61086.0,1.20268452]
[1719454405528,0.65472,61087.0,61086.0,0.96578452]
[1719454406507,0.65472,61087.0,61086.0,0.95428729]
[1719454407920,0.65472,61087.0,61086.0,0.97428729]
[1719454410030,0.65472,61087.0,61086.0,1.39759429]
[1719454410251,0.65472,61087.0,61086.0,1.81419429]
[1719454412036,0.65472,61087.0,61086.0,2.14160129]
[1719454412920,0.65472,61087.0,61086.0,2.19071887]
[1719454413132,0.65472,61087.0,61086.0,2.21521138]
[1719454413372,0.65472,61087.0,61086.0,2.75095499]
[1719454413594,0.65472,61087.0,61086.0,2.31020129]
[1719454413802,0.65472,61087.0,61086.0,2.31920129]
[1719454414015,0.65472,61087.0,61086.0,2.32920129]
[1719454414433,0.65472,61087.0,61086.0,2.37823451]
[1719454414865,0.65472,61087.0,61086.0,2.52193451]
[1719454415110,0.65472,61087.0,61086.0,3.78460304]
[1719454415111,0.4204869,61087.0,61086.0,3.78460304]
[1719454415311,0.4204869,61087.0,61086.0,3.71929625]
[1719454415517,0.4204869,61087.0,61086.0,3.85527619]
[1719454415719,0.4204869,61087.0,61086.0,3.86334869]
[1719454415935,0.4204869,61087.0,61086.0,3.73113838]
[1719454416146,0.4204869,61087.0,61086.0,3.38671348]
[1719454416355,0.4204869,61087.0,61086.0,3.88577755]
[1719454416561,0.4204869,61087.0,61086.0,3.89678224]
[1719454416763,0.4204869,61087.0,61086.0,3.88678224]
[1719454416932,0.4204869,61087.0,61086.0,3.87578224]
[1719454417147,0.4204869,61087.0,61086.0,3.98834224]
[1719454417352,0.00084,61092.0,61091.0,2.80799]
[1719454417552,0.00084,61092.0,61091.0,3.33292898]
[1719454417699,0.00084,61092.0,61091.0,3.34092673]
[1719454418075,0.00084,61092.0,61091.0,3.38984002]
[1719454418550,0.00084,61092.0,61091.0,3.10132673]
[1719454418725,0.00084,61092.0,61091.0,3.34092673]
[1719454419120,0.00084,61092.0,61091.0,3.37376673]
[1719454419330,0.00084,61092.0,61091.0,3.4226593]
[1719454419606,0.00084,61092.0,61091.0,3.37376673]
[1719454419813,0.00084,61092.0,61091.0,3.4226593]
[1719454420137,0.00084,61092.0,61091.0,3.38776673]
[1719454420340,0.00084,61092.0,61091.0,3.36576898]
[1719454420542,0.00084,61092.0,61091.0,3.12616898]
[1719454420716,0.00084,61092.0,61091.0,3.37976898]
[1719454421173,0.00084,61092.0,61091.0,3.39376898]
[1719454422007,0.00084,61092.0,61091.0,2.82678898]
[1719454422219,0.00084,61092.0,61091.0,3.06638898]
[1719454423039,0.00084,61092.0,61091.0,3.03354898]
[1719454424080,0.00084,61092.0,61091.0,3.00554898]
[1719454424455,0.00084,61092.0,61091.0,3.03354898]
[1719454425201,0.00084,61092.0,61091.0,3.01954898]
[1719454425409,0.00084,61092.0,61091.0,2.99954898]
[1719454425857,0.00084,61092.0,61091.0,2.98554898]
[1719454426283,0.00084,61092.0,61091.0,2.99954898]
[1719454426905,0.00084,61092.0,61091.0,2.98554898]
[1719454427149,0.00084,61092.0,61091.0,2.99954898]
[1719454427352,0.00084,61092.0,61091.0,3.01354898]
[1719454427526,0.00084,61092.0,61091.0,2.99954898]
[1719454427888,0.00084,61092.0,61091.0,3.01354898]
[1719454428091,0.00084,61092.0,61091.0,2.98554898]
[1719454428498,0.00084,61092.0,61091.0,2.99954898]
[1719454429746,0.00084,61092.0,61091.0,3.01354898]
[1719454430161,0.00084,61092.0,61091.0,2.99954898]
[1719454430537,0.00084,61092.0,61091.0,3.01354898]
[1719454433182,0.00084,61092.0,61091.0,3.0623357]
[1719454434684,0.00084,61092.0,61091.0,2.81123847]
[1719454434857,0.00084,61092.0,61091.0,2.90703847]
[1719454435009,0.00084,61092.0,61091.0,2.81123847]
[1719454435234,0.00084,61092.0,61091.0,2.84411847]
[1719454435418,0.00084,61092.0,61091.0,2.93991847]
[1719454436841,0.00084,61092.0,61091.0,1.4849557]
[1719454437151,0.09984,61092.0,61091.0,1.43616898]
[1719454437819,0.21564,61092.0,61091.0,1.40816898]
[1719454438149,0.21564,61092.0,61091.0,1.42216898]
[1719454438774,0.21564,61092.0,61091.0,1.43616898]
[1719454439042,0.21564,61092.0,61091.0,1.40816898]
[1719454439224,0.21564,61092.0,61091.0,1.30816898]
[1719454439636,0.21564,61092.0,61091.0,1.32216898]
[1719454440282,0.21564,61092.0,61091.0,1.30816898]
[1719454440483,0.21564,61092.0,61091.0,1.33616898]
[1719454441805,0.21564,61092.0,61091.0,1.32216898]
[1719454442009,0.21564,61092.0,61091.0,1.33616898]
[1719454442221,0.21564,61092.0,61091.0,1.32216898]
[1719454442634,0.21564,61092.0,61091.0,1.33616898]
[1719454443168,0.21564,61092.0,61091.0,1.32216898]
[1719454443575,0.21564,61092.0,61091.0,1.33616898]
[1719454443937,0.21564,61092.0,61091.0,1.32467175]
[1719454444364,0.21564,61092.0,61091.0,0.66991175]
[1719454445180,0.21564,61092.0,61091.0,0.99729175]
[1719454445809,0.21564,61092.0,61091.0,0.66991175]
[1719454446106,0.21564,61092.0,61091.0,0.19033898]
[1719454446660,0.379327,61092.0,61091.0,0.17633898]
[1719454446849,0.40232146,61092.0,61091.0,0.19033898]
[1719454447051,0.23863446,61092.0,61091.0,0.19033898]
[1719454447280,0.23863446,61092.0,61091.0,0.17633898]
[1719454447458,0.23863446,61092.0,61091.0,0.16233898]
[1719454447898,0.23863446,61092.0,61091.0,0.014]
[1719454448113,0.72969646,61092.0,61091.0,0.014]
[1719454448317,0.22099723,61087.0,61086.0,0.000924]
[1719454448495,0.22099723,61087.0,61086.0,0.16326298]
[1719454448707,0.22099723,61087.0,61086.0,0.000924]
[1719454448708,0.39619446,61087.0,61086.0,0.000924]
[1719454448914,1.12343701,61087.0,61086.0,0.000924]
[1719454449078,1.08361224,61087.0,61086.0,0.000924]
[1719454449288,2.03320746,61087.0,61086.0,0.000924]
[1719454450045,2.06606573,61087.0,61086.0,0.014924]
[1719454450246,2.03320746,61087.0,61086.0,0.014924]
[1719454450454,2.19554117,61087.0,61086.0,0.000924]
[1719454450656,2.19554117,61087.0,61086.0,0.014924]
[1719454450864,1.05200446,61087.0,61086.0,0.015924]
[1719454451350,1.05200446,61087.0,61086.0,0.016924]
[1719454451351,1.05400446,61087.0,61086.0,0.016924]
[1719454451550,1.38140546,61087.0,61086.0,0.016924]
[1719454451907,1.04250723,61087.0,61086.0,0.016924]
[1719454452512,1.04250723,61087.0,61086.0,0.001924]
[1719454452513,0.88830446,61087.0,61086.0,0.001924]
[1719454452935,0.88830446,61087.0,61086.0,0.000924]
[1719454452936,0.88730446,61087.0,61086.0,0.000924]
[1719454453148,0.88730446,61087.0,61084.0,0.15405877]
[1719454453358,0.88930446,61087.0,61086.0,0.001]
[1719454453562,0.89130446,61087.0,61086.0,0.001]
[1719454453780,0.88930446,61087.0,61085.0,0.16233898]
[1719454453997,0.88730446,61087.0,61085.0,0.16233898]
[1719454454201,0.89130446,61087.0,61086.0,0.002]
[1719454454644,0.02299446,61086.0,61085.0,0.16233898]
[1719454454855,0.01149723,61080.0,61077.0,0.163725]
[1719454455061,0.0964,61079.0,61078.0,0.32606398]
[1719454455271,0.65481,61079.0,61078.0,0.65351398]
[1719454455478,0.65481,61079.0,61078.0,0.98096398]
[1719454456120,0.38031241,61079.0,61078.0,0.98096398]
[1719454457268,0.38031241,61079.0,61078.0,1.18716398]
[1719454457530,0.38031241,61079.0,61078.0,1.20416398]
[1719454458211,0.38031241,61079.0,61078.0,1.19616398]
[1719454458375,0.38031241,61079.0,61078.0,1.18716398]
[1719454459002,0.38031241,61079.0,61078.0,0.98096398]
[1719454459736,0.38031241,61079.0,61078.0,0.98396398]
[1719454459934,0.38031241,61079.0,61078.0,0.98696398]
[1719454460170,0.38031241,61079.0,61078.0,0.98396398]
[1719454460342,0.38031241,61079.0,61078.0,0.98096398]
[1719454460586,0.38031241,61079.0,61078.0,0.99096398]
[1719454460794,0.38031241,61079.0,61078.0,0.98996398]
[1719454461009,0.38031241,61079.0,61078.0,0.66251398]
[1719454461181,0.38031241,61079.0,61078.0,0.66351398]
[1719454461566,0.38031241,61079.0,61078.0,0.67251398]
[1719454461766,0.38031241,61079.0,61078.0,0.68251398]
[1719454462867,0.38031241,61079.0,61078.0,0.67101675]
[1719454463066,0.38031241,61079.0,61078.0,0.66201675]
[1719454463278,0.38031241,61079.0,61078.0,0.98946675]
[1719454463489,0.38031241,61079.0,61078.0,0.99846675]
[1719454463691,0.38031241,61079.0,61078.0,0.67101675]
[1719454464097,0.38031241,61079.0,61078.0,0.99846675]
[1719454465382,0.38031241,61079.0,61078.0,0.99939075]
[1719454466956,0.38031241,61079.0,61078.0,0.67194075]
[1719454467161,0.50391241,61079.0,61078.0,0.67194075]
[1719454468383,0.51540964,61079.0,61078.0,0.67194075]
[1719454469206,0.50391241,61079.0,61078.0,0.67194075]
[1719454470768,0.50391241,61079.0,61078.0,0.34449075]
[1719454471140,0.59791241,61079.0,61078.0,0.34449075]
[1719454471763,0.59791241,61079.0,61078.0,0.33299352]
[1719454473662,0.60940964,61079.0,61078.0,0.33299352]
[1719454474086,0.34672359,61079.0,61078.0,0.33299352]
[1719454474485,0.35822082,61079.0,61078.0,0.33299352]
[1719454474919,0.34672359,61079.0,61078.0,0.33299352]
[1719454475292,0.33522636,61079.0,61078.0,0.33299352]
[1719454478732,0.34672359,61079.0,61078.0,0.33299352]
[1719454478964,0.52194282,61079.0,61078.0,0.029924]
[1719454479164,0.51044559,61079.0,61078.0,0.029924]
[1719454481084,0.51044559,61079.0,61078.0,0.01842677]
[1719454481292,0.34672359,61079.0,61078.0,0.01842677]
[1719454482159,0.35822082,61079.0,61078.0,0.01842677]
[1719454482435,0.34672359,61079.0,61078.0,0.01842677]
[1719454490400,0.35822082,61079.0,61078.0,0.01842677]
[1719454490894,0.35822082,61079.0,61078.0,0.00692954]
[1719454491082,0.39051404,61079.0,61078.0,0.00692954]
[1719454491298,0.38894363,61079.0,61078.0,0.00692954]
[1719454492232,0.55266563,61079.0,61078.0,0.00692954]
[1719454495652,0.38894363,61079.0,61078.0,0.00692954]
[1719454495854,0.48484363,61079.0,61078.0,0.00692954]
[1719454497899,0.58687704,61079.0,61078.0,0.00692954]
[1719454498378,0.75059904,61079.0,61078.0,0.00692954]
[1719454500007,0.75059904,61079.0,61073.0,0.15916831]
[1719454500222,0.75059904,61079.0,61071.0,0.327485]
[1719454500223,0.01149723,61075.0,61074.0,0.32607398]
[1719454500423,0.14062082,61075.0,61074.0,0.32607398]
[1719454500849,0.11762636,61075.0,61074.0,0.32607398]
[1719454501208,0.11762636,61075.0,61074.0,0.53947398]
[1719454501917,0.11762636,61075.0,61074.0,0.86694498]
[1719454502409,0.11762636,61075.0,61074.0,1.19441598]
[1719454503361,0.11862636,61075.0,61074.0,1.20841598]
[1719454503783,0.11962636,61075.0,61074.0,1.21641598]
[1719454506748,0.11962636,61075.0,61074.0,1.54388698]
[1719454506977,0.11962636,61075.0,61074.0,1.63978698]
[1719454507723,0.11962636,61075.0,61074.0,1.21641598]
[1719454509406,0.11962636,61075.0,61074.0,1.20491875]
[1719454510645,0.11962636,61075.0,61074.0,1.53238975]
[1719454514305,0.11962636,61075.0,61074.0,1.72089252]
[1719454514531,0.11962636,61075.0,61074.0,1.53238975]
[1719454514648,0.11962636,61075.0,61074.0,1.72089252]
[1719454515272,0.11962636,61075.0,61074.0,1.72863321]
[1719454515470,0.11962636,61075.0,61074.0,1.54013044]
[1719454518784,0.11962636,61075.0,61074.0,1.52863321]
[1719454519669,0.11962636,61075.0,61074.0,1.71713598]
[1719454521584,0.11962636,61075.0,61074.0,1.52863321]
[1719454522752,0.11962636,61075.0,61074.0,1.31523321]
[1719454527655,0.11962636,61075.0,61074.0,1.30373598]
[1719454528088,0.11962636,61075.0,61074.0,1.39963598]
[1719454529685,0.11962636,61075.0,61074.0,1.40055998]
[1719454530929,0.12046636,61075.0,61074.0,1.40055998]
[1719454532573,0.12046636,61075.0,61074.0,1.30465998]
[1719454535304,0.04742397,61080.0,61079.0,0.491166]
[1719454535496,0.04742397,61080.0,61079.0,0.65350498]
[1719454535699,0.07041843,61080.0,61079.0,0.0069657]
[1719454535902,0.07041843,61080.0,61074.0,0.022924]
[1719454535903,0.01149723,61077.0,61076.0,0.16373]
[1719454536103,0.01149723,61076.0,61075.0,0.163732]
[1719454537325,0.01149723,61076.0,61075.0,0.15223477]
[1719454537737,0.01249723,61077.0,61075.0,0.15223477]
[1719454537957,0.01149723,61077.0,61075.0,0.15223477]
[1719454538525,0.23599723,61076.0,61075.0,0.15223477]
[1719454538691,0.2235,61076.0,61075.0,0.47970077]
[1719454539495,0.2235,61076.0,61075.0,0.48470077]
[1719454539898,0.2235,61076.0,61075.0,0.47970077]
[1719454540241,0.2235,61076.0,61075.0,0.48470077]
[1719454540882,0.2245,61076.0,61075.0,0.48470077]
[1719454541530,0.21803013,61084.0,61078.0,0.163722]
[1719454541697,0.0310525,61083.0,61079.0,0.163722]
[1719454541896,0.0310525,61082.0,61079.0,0.163722]
[1719454542118,0.21803013,61084.0,61079.0,0.163722]
[1719454542317,0.03105226,61083.0,61079.0,0.163722]
[1719454542516,0.03105226,61082.0,61079.0,0.163722]
[1719454542734,0.21803013,61084.0,61079.0,0.163722]
[1719454542948,0.03103973,61083.0,61079.0,0.163722]
[1719454543079,0.03103973,61082.0,61079.0,0.163722]
[1719454543289,0.004,61083.0,61079.0,0.163722]
[1719454543570,0.03104238,61082.0,61079.0,0.163722]
[1719454543770,0.173711,61083.0,61079.0,0.001]
[1719454543896,0.03105505,61082.0,61079.0,0.001]
[1719454544099,0.163711,61083.0,61077.0,0.163725]
[1719454544467,0.2214,61081.0,61079.0,0.001]
[1719454544628,0.0962,61080.0,61079.0,0.001]
[1719454544823,0.0962,61080.0,61075.0,0.163731]
[1719454544824,0.2214,61079.0,61075.0,0.163731]
[1719454545027,0.2214,61079.0,61076.0,0.163729]
[1719454546349,0.2214,61079.0,61076.0,0.15623177]
[1719454547567,0.65491,61078.0,61076.0,0.15623177]
[1719454548279,0.65491,61078.0,61076.0,0.004]
[1719454549022,0.0959,61077.0,61076.0,0.004]
[1719454549224,0.75081,61077.0,61074.0,0.164657]
[1719454549427,0.75081,61077.0,61074.0,0.32699598]
[1719454549631,0.75081,61077.0,61076.0,0.005]
[1719454550179,0.75081,61077.0,61074.0,0.32699598]
[1719454550354,0.75081,61077.0,61074.0,0.164657]
[1719454550561,0.75181,61077.0,61074.0,0.170657]
[1719454550771,0.75181,61077.0,61074.0,0.171657]
[1719454550978,0.75081,61077.0,61075.0,0.0069903]
[1719454551392,0.75181,61077.0,61076.0,0.006]
[1719454551687,0.75181,61077.0,61076.0,0.01299027]
[1719454551861,0.65591,61077.0,61076.0,0.006]
[1719454552404,0.65591,61077.0,61076.0,0.16973]
[1719454552708,0.65591,61077.0,61076.0,0.17071868]
[1719454552709,0.65491,61077.0,61076.0,0.17071868]
[1719454553192,0.65591,61077.0,61076.0,0.17071868]
[1719454553634,0.65491,61077.0,61076.0,0.17071868]
[1719454554321,0.65591,61077.0,61076.0,0.17671868]
[1719454554687,0.65591,61077.0,61076.0,0.17771868]
[1719454555708,0.65591,61077.0,61076.0,0.16622145]
[1719454559203,0.68703134,61077.0,61076.0,0.16622145]
[1719454559921,0.65591,61077.0,61076.0,0.01398868]
[1719454560123,0.68697569,61077.0,61076.0,0.01398868]
[1719454561628,0.87028923,61077.0,61076.0,0.01398868]
[1719454561836,1.44359875,61077.0,61076.0,0.01398868]
[1719454562041,1.43914423,61077.0,61076.0,0.007]
[1719454562442,1.43955306,61077.0,61076.0,0.007]
[1719454562803,1.43855306,61077.0,61076.0,0.001]
[1719454563228,1.44155306,61077.0,61076.0,0.001]
[1719454563430,0.818665,61075.0,61074.0,0.000924]
[1719454563654,1.53338106,61075.0,61074.0,0.000924]
[1719454564490,1.54338106,61075.0,61074.0,0.000924]
[1719454564690,1.53338106,61075.0,61074.0,0.000924]
[1719454564920,1.54338106,61075.0,61074.0,0.000924]
[1719454565123,0.1237,61068.0,61063.0,0.15418977]
[1719454565438,0.0959,61067.0,61063.0,0.15418977]
[1719454566061,0.0959,61067.0,61064.0,0.00700572]
[1719454566261,0.03224486,61066.0,61064.0,0.00700572]
[1719454566463,0.03224486,61066.0,61063.0,0.15418977]
[1719454566464,0.0959,61067.0,61063.0,0.15418977]
[1719454566668,0.03224594,61066.0,61065.0,0.00700569]
[1719454566861,0.03224594,61066.0,61064.0,0.00700572]
[1719454567043,0.0959,61067.0,61065.0,0.00700569]
[1719454567249,0.0324723,61066.0,61065.0,0.00700569]
[1719454567423,0.0959,61067.0,61063.0,0.15418977]
[1719454567629,0.0959,61067.0,61054.0,0.01]
[1719454567630,0.714378,61065.0,61064.0,0.017]
[1719454568011,1.18979172,61065.0,61064.0,0.017]
[1719454568219,1.51731072,61065.0,61064.0,0.006]
[1719454568429,0.163796,61052.0,61047.0,0.4688]
[1719454568641,0.0959,61051.0,61047.0,0.32614598]
[1719454568810,0.0959,61051.0,61048.0,0.163805]
[1719454569022,0.0959,61054.0,61049.0,0.16233898]
[1719454569228,0.0959,61059.0,61055.0,0.163785]
[1719454569793,0.38661051,61065.0,61063.0,0.005]
[1719454569989,0.38661051,61065.0,61061.0,0.387269]
[1719454570187,0.34704154,61065.0,61064.0,0.163762]
[1719454570394,0.34704154,61065.0,61064.0,0.87712598]
[1719454570594,0.34704154,61065.0,61064.0,0.98302598]
[1719454570921,0.34704154,61065.0,61064.0,1.32055098]
[1719454571175,0.36904154,61065.0,61064.0,1.32055098]
[1719454571556,0.36104154,61065.0,61064.0,1.32055098]
[1719454571903,0.36704154,61065.0,61064.0,1.21565098]
[1719454572108,0.36704154,61065.0,61064.0,1.20565098]
[1719454573007,0.34704154,61065.0,61064.0,1.20465098]
[1719454573239,0.34704154,61065.0,61064.0,0.87712598]
[1719454573409,0.34804154,61065.0,61064.0,0.16833898]
[1719454573618,0.34904154,61065.0,61064.0,0.006]
[1719454573764,0.51280054,61065.0,61064.0,0.006]
[1719454574578,0.51380054,61065.0,61064.0,0.011]
[1719454574771,0.51180054,61065.0,61064.0,0.011]
[1719454574976,0.60690054,61065.0,61064.0,0.011]
[1719454576721,1.05701954,61065.0,61064.0,0.011]
[1719454576927,1.05801954,61065.0,61064.0,0.013]
[1719454577909,0.163766,61063.0,61057.0,0.16378]
[1719454578068,0.44294154,61062.0,61057.0,0.32611898]
[1719454578386,0.44294154,61062.0,61058.0,0.00755346]
[1719454579435,0.259676,61059.0,61058.0,0.00755346]
[1719454579589,0.70421754,61059.0,61053.0,0.163791]
[1719454579795,0.0959,61057.0,61053.0,0.163791]
[1719454580001,0.0959,61057.0,61054.0,0.00755359]
[1719454580180,0.0959,61057.0,61053.0,0.163791]
[1719454580383,0.0959,61057.0,61055.0,0.00755356]
[1719454580589,0.0959,61057.0,61053.0,0.163791]
[1719454580997,0.0959,61057.0,61054.0,0.00755359]
[1719454581194,0.0959,61057.0,61054.0,0.002]
[1719454581195,0.0969,61057.0,61054.0,0.002]
[1719454581438,0.0969,61057.0,61055.0,0.00755356]
[1719454581639,0.34704154,61056.0,61055.0,0.00755356]
[1719454581843,0.43032329,61056.0,61054.0,0.016]
[1719454582158,0.583659,61055.0,61054.0,0.016]
[1719454582364,0.93070054,61055.0,61054.0,0.016]
[1719454582588,0.93070054,61055.0,61054.0,0.014]
[1719454582589,0.96330659,61055.0,61054.0,0.014]
[1719454582795,1.09010659,61055.0,61054.0,0.014]
[1719454583003,0.163789,61054.0,61053.0,0.002]
[1719454583254,0.163793,61053.0,61047.0,0.32614498]
[1719454583456,0.34704154,61052.0,61047.0,0.32614498]
[1719454583685,0.34704154,61052.0,61039.0,0.327657]
[1719454583686,0.163808,61047.0,61039.0,0.327657]
[1719454583868,0.163808,61047.0,61041.0,0.15232477]
[1719454584105,0.163808,61047.0,61041.0,0.31466375]
[1719454584251,0.163808,61047.0,61042.0,0.395021]
[1719454586382,0.001,61047.0,61042.0,0.2312]
[1719454586935,0.001,61047.0,61043.0,0.163818]
[1719454587111,0.001,61047.0,61044.0,0.163815]
[1719454587311,0.009,61047.0,61044.0,0.163815]
[1719454587732,0.009,61047.0,61043.0,0.163818]
[1719454587970,0.009,61047.0,61042.0,0.289921]
[1719454587971,0.008,61047.0,61042.0,0.289921]
[1719454588097,0.0959,61046.0,61042.0,0.289921]
[1719454588282,0.0959,61046.0,61042.0,0.163821]
[1719454589724,0.0959,61046.0,61043.0,0.00759169]
[1719454590252,0.1029,61046.0,61044.0,0.00759166]
[1719454590755,0.1029,61046.0,61042.0,0.163821]
[1719454590975,0.1029,61046.0,61045.0,0.00759163]
[1719454591195,0.0959,61046.0,61042.0,0.163821]
[1719454591369,0.0959,61046.0,61045.0,0.00759163]
[1719454591574,0.1029,61046.0,61042.0,0.163821]
[1719454591752,0.1029,61046.0,61045.0,0.00759163]
[1719454591952,0.007,61046.0,61042.0,0.491461]
[1719454592157,0.007,61046.0,61043.0,0.00759169]
[1719454592357,0.007,61046.0,61042.0,0.491461]
[1719454592558,0.007,61046.0,61044.0,0.00759166]
[1719454592788,0.007,61046.0,61043.0,0.163818]
[1719454592984,0.163805,61048.0,61045.0,0.00759163]
[1719454593160,0.163805,61048.0,61044.0,0.00885694]
[1719454593368,0.007,61046.0,61043.0,0.1599124]
[1719454593568,0.007,61046.0,61045.0,0.0088569]
[1719454593766,0.007,61046.0,61043.0,0.1599124]
[1719454593969,0.014,61046.0,61045.0,0.0088569]
[1719454594159,0.165805,61048.0,61043.0,0.1599124]
[1719454594356,0.165805,61048.0,61032.0,0.105107]
[1719454594357,0.0959,61044.0,61036.0,0.1226]
[1719454594564,0.0959,61044.0,61035.0,0.260239]
[1719454594565,0.0959,61037.0,61033.0,0.286444]
[1719454594783,0.34704154,61036.0,61035.0,0.163839]
[1719454597008,0.34804154,61036.0,61035.0,0.165839]
[1719454597215,0.34804154,61036.0,61035.0,0.002]
[1719454597216,0.51187854,61036.0,61035.0,0.002]
[1719454597387,0.73257854,61036.0,61035.0,0.002]
[1719454597658,0.73257854,61036.0,61035.0,0.015]
[1719454597659,0.73357854,61036.0,61035.0,0.015]
[1719454598381,0.73257854,61036.0,61035.0,0.002]
[1719454598581,0.73257854,61036.0,61035.0,0.002924]
[1719454598791,0.73257854,61036.0,61035.0,0.007924]
[1719454599385,0.73157854,61036.0,61035.0,0.005924]
[1719454599873,0.73257854,61036.0,61035.0,0.005924]
[1719454600171,0.73257854,61036.0,61035.0,0.000924]
[1719454600528,0.73257854,61036.0,61035.0,0.005924]
[1719454600878,0.93825354,61036.0,61035.0,0.005924]
[1719454602481,0.163842,61035.0,61032.0,0.00363377]
[1719454602725,0.0959,61034.0,61032.0,0.00363377]
[1719454602923,0.0959,61034.0,61033.0,0.00888827]
[1719454603173,0.715,61036.0,61033.0,0.00888827]
[1719454603322,0.715,61036.0,61032.0,0.00363377]
[1719454603323,0.0959,61034.0,61032.0,0.00363377]
[1719454603523,0.0959,61034.0,61033.0,0.00888827]
[1719454603722,0.0959,61034.0,61032.0,0.00363377]
[1719454603947,0.0959,61034.0,61033.0,0.00888827]
[1719454604287,0.0959,61034.0,61032.0,0.00463377]
[1719454604490,0.0959,61034.0,61032.0,0.01163377]
[1719454604650,0.0959,61034.0,61033.0,0.00888827]
[1719454604996,0.0959,61034.0,61032.0,0.01163377]
[1719454604997,0.0959,61034.0,61032.0,0.00463377]
[1719454605123,0.0959,61034.0,61033.0,0.00888827]
[1719454605325,0.0959,61034.0,61032.0,0.00463377]
[1719454605532,0.0969,61034.0,61033.0,0.008]
[1719454606141,0.0969,61034.0,61033.0,0.009]
[1719454606774,0.001,61034.0,61033.0,0.009]
[1719454606973,0.287625,61036.0,61033.0,0.1298]
[1719454607300,0.001,61034.0,61033.0,0.1365659]
[1719454607436,0.001,61034.0,61033.0,0.73465715]
[1719454607851,0.287625,61036.0,61034.0,0.163842]
[1719454608296,0.287625,61036.0,61035.0,0.00902112]
[1719454608655,0.287625,61036.0,61035.0,0.00676584]
[1719454609106,0.287625,61036.0,61035.0,0.00902112]
[1719454609563,0.288625,61036.0,61035.0,0.00902112]
[1719454610194,0.289625,61036.0,61035.0,0.00902112]
[1719454610351,0.289625,61036.0,61035.0,0.00676584]
[1719454610758,0.289625,61036.0,61035.0,0.01402112]
[1719454610959,0.289625,61036.0,61035.0,0.17786112]
[1719454611136,0.289625,61036.0,61035.0,0.50554112]
[1719454611738,0.289625,61036.0,61035.0,0.50088309]
[1719454614913,0.289625,61036.0,61035.0,0.95736309]
[1719454620864,0.289625,61036.0,61035.0,0.62968309]
[1719454621347,0.289625,61036.0,61035.0,0.62127183]
[1719454621987,0.289625,61036.0,61035.0,0.94895183]
[1719454622257,0.289625,61036.0,61035.0,0.62127183]
[1719454623579,0.42610551,61036.0,61035.0,0.00752317]
[1719454623984,0.42610551,61036.0,61034.0,0.163841]
[1719454624208,0.03218051,61035.0,61032.0,0.00363377]
[1719454624409,0.0959,61033.0,61032.0,0.00363377]
[1719454624609,0.41572799,61033.0,61032.0,0.00363377]
[1719454626857,0.31982799,61033.0,61032.0,0.00363377]
[1719454627416,0.31982799,61033.0,61032.0,0.00563377]
[1719454627619,0.32079691,61033.0,61032.0,0.00963377]
[1719454628878,0.32079691,61033.0,61032.0,0.0171575]
[1719454630655,0.32079691,61033.0,61032.0,0.77004048]
[1719454630888,0.288625,61033.0,61032.0,1.21733925]
[1719454631084,0.288625,61033.0,61032.0,1.21889213]
[1719454631292,0.288625,61033.0,61032.0,1.20889213]
[1719454631816,0.288625,61033.0,61032.0,0.88119613]
[1719454632774,0.288625,61033.0,61032.0,0.78219613]
[1719454633365,0.288625,61033.0,61032.0,0.00721315]
[1719454633366,0.32084295,61033.0,61032.0,0.00721315]
[1719454633570,0.32084295,61033.0,61030.0,0.0968]
[1719454633796,0.288625,61033.0,61031.0,0.00721319]
[1719454634011,0.288625,61033.0,61029.0,0.129207]
[1719454634012,0.35734805,61032.0,61029.0,0.009207]
[1719454634145,0.03214805,61031.0,61029.0,0.009207]
[1719454634365,0.31977305,61031.0,61029.0,0.009207]
[1719454634582,0.03214805,61030.0,61029.0,0.009207]
[1719454635732,0.287625,61031.0,61029.0,0.009207]
[1719454635983,0.03195995,61030.0,61029.0,0.009207]
[1719454636210,0.287625,61031.0,61030.0,0.001]
[1719454636440,0.31958675,61031.0,61030.0,0.001]
[1719454636686,0.31958675,61031.0,61029.0,0.009207]
[1719454636915,0.001,61030.0,61029.0,0.010207]
[1719454637149,0.288625,61031.0,61029.0,0.010207]
[1719454637387,0.289625,61031.0,61029.0,0.010207]
[1719454637909,0.287625,61031.0,61029.0,0.009207]
[1719454638143,0.001,61030.0,61029.0,0.010207]
[1719454639379,0.287625,61031.0,61029.0,0.009207]
[1719454639818,0.001,61030.0,61029.0,0.010207]
[1719454640320,0.30012223,61031.0,61029.0,0.010207]
[1719454640568,0.30112223,61031.0,61029.0,0.010207]
[1719454640802,0.29912223,61031.0,61029.0,0.009207]
[1719454641261,0.002,61030.0,61029.0,0.010207]